Cogmind - Beta 15 @@@ ROGUE MODE // 2025.08.18 @ 11:20:27 Player: Fluffalo Result: Destroyed by G-47 Trooper with Particle Gun Performance ------------- Evolutions (2) 1000 Regions Visited (3) 600 Robots Destroyed (45) 225 Value Destroyed (946) 946 Prototype IDs (6) 120 Alien Tech Used (0) 0 Bonus (8) 8 TOTAL SCORE: 2899 Bonus ------- High Alert Combat Kills 8 Cogmind --------- Core Integrity 0/550 Matter 260/300 Energy 96/100 System Corruption 0% Temperature Cool (27) Movement Core (100) Ox1 Location -8/Materials Parts ------- > --- POWER (1) -------- (None) > --- PROPULSION (3) --- (None) > --- UTILITY (4) ------ Terrain Scan Processor Targeting Computer > --- WEAPON (3) ------- Mace Heavy Mace > --- INVENTORY (5) ---- Light Ion Engine Flight Unit Light Armor Plating Peak State ------------ > --- POWER ------------ Improved Ion Engine > --- PROPULSION ------- Improved Aluminum Leg Improved Aluminum Leg > --- UTILITY ---------- Improved Terrain Scanner Improved Terrain Scanner Hacking Suite > --- WEAPON ----------- EM Shotgun Shock Bomb Launcher Mini Grenade Launcher > --- INVENTORY -------- Ion Engine Improved Aluminum Leg Shotgun Mini Grenade Launcher [Rating: 22] Favorites ----------- Power Improved Ion Engine Engine Improved Ion Engine Propulsion Improved Aluminum Leg Leg Improved Aluminum Leg Wheel Wheel Flight Unit VTOL Module Utility Hacking Suite Device Improved Terrain Scanner Processor Terrain Scan Processor Hackware Hacking Suite Protection Light Armor Plating Weapon Shock Bomb Launcher Energy Gun EM Pulse Gun Energy Cannon Ion Cannon Ballistic Gun Shotgun Launcher Shock Bomb Launcher Impact Weapon Mace Build | -11 -10 -9 -8 ------- Run | Yrd Mat Mat Mat Slots Evolved 4 | . . 2 2 Power . | . . . . Propulsion 1 | . . . 1 Utility 2 | . . 1 1 Weapon 1 | . . 1 . Parts Attached 40 | 9 8 14 9 Power 4 | 2 1 . 1 Engine 4 | 2 1 . 1 Core . | . . . . Reactor . | . . . . Propulsion 11 | 4 2 1 4 Treads . | . . . . Leg 8 | 2 2 1 3 Wheel 2 | 2 . . . Hover . | . . . . Flight 1 | . . . 1 Utility 7 | . 2 3 2 Device 3 | . 1 2 . Storage . | . . . . Processor 2 | . . 1 1 Hackware 1 | . 1 . . Protection 1 | . . . 1 Artifact . | . . . . Weapon 18 | 3 3 10 2 Energy Gun 7 | 2 2 3 . Energy Cannon 1 | . . . 1 Ballistic Gun 3 | 1 . 2 . Ballistic Cannon . | . . . . Launcher 5 | . 1 4 . Special Weapon . | . . . . Impact Weapon 2 | . . 1 1 Slashing Weapon . | . . . . Piercing Weapon . | . . . . Special Melee Weapon . | . . . . Unidentified Prototypes . | . . . . Parts Lost 22 | . 1 13 8 Power 3 | . . 2 1 Propulsion 8 | . 1 3 4 Utility 2 | . . 1 1 Weapon 9 | . . 7 2 Highest Loss Streak 6 | . 1 6 6 To Critical Strikes . | . . . . Average Backups 4 | 2 4 4 3 Power . | . . . . Propulsion 1 | 1 1 1 2 Utility . | . . 1 1 Weapon 1 | . 2 . . Tool/Special . | . . . . Unused Backups 4 | . 2 2 . Power . | . . . . Propulsion . | . . . . Utility 1 | . 1 . . Weapon 3 | . 1 2 . Tool/Special . | . . . . Average Slot Usage (%) 85 | . 94 94 45 Engine 10 | . 14 10 1 Leg 14 | . 11 21 4 Wheel 5 | . 14 . . Device 11 | . 11 15 . Processor 5 | . . 6 13 Hackware 11 | . 13 11 8 Energy Gun 10 | . 20 5 2 Ballistic Gun 2 | . . 6 . Launcher 11 | . 7 17 . Impact Weapon 1 | . . . 10 Peak Build Rating 22 | 5 14 22 15 Average Rating 14 | 3 10 20 10 On Entrance 6 | . 5 14 8 Naked Turns . | . . . . Heaviest Build 21 | 8 12 21 14 Greatest Support 26 | 20 26 26 20 Greatest Overweight (x) 4 | . 3 3 4 Average Overweight (x) . | . . . . Largest Inventory Capacity 5 | 5 5 5 5 Average Capacity 5 | 5 5 5 5 Most Carried 5 | 5 5 5 5 Average Carried 4 | 2 4 4 3 Final Capacity 5 | 5 5 5 5 Final Carried 5 | 5 5 4 3 Class Distribution -------------------- 63% | Mutant 26% | Skirmisher 6% | Scavenger-Skirmisher 3% | Scavenger-Mutant Dominant Class ---------------- Mutant | -10/Materials Skirmisher | -9/Materials Mutant | -8/Materials Resources | -11 -10 -9 -8 ----------- Run | Yrd Mat Mat Mat Matter Collected 937 | 292 115 465 65 Remotely . | . . . . Salvage Created 1225 | 34 135 853 203 Parts 90 | 2 19 64 5 Haulers Intercepted 2 | . . 1 1 Recyclers Shooed 3 | . 1 1 1 Parts Field Recycled . | . . . . Retrieved Matter . | . . . . Parts Self-Destructed . | . . . . Prevented . | . . . . Kills | -11 -10 -9 -8 ------- Run | Yrd Mat Mat Mat Combat Hostiles Destroyed 29 | 1 6 18 4 Melee 1 | . . . 1 Guns 8 | 1 2 5 . Cannons 1 | . . . 1 AOE 17 | . 4 13 . Classes Destroyed 11 | 1 5 5 . Worker 2 | . . 1 1 Builder 3 | . 1 2 . Tunneler 1 | . 1 . . Hauler 2 | . . 1 1 Recycler 1 | . . 1 . Mechanic 1 | . . 1 . Operator 1 | . 1 . . Watcher 5 | . 2 3 . Swarmer 14 | . 6 7 1 Grunt 11 | 1 . 8 2 Sentry 4 | . . 3 1 Best Kill Streak 9 | 1 4 9 2 Combat Bots Only 4 | 1 3 4 2 Max Kills in Single Turn 3 | 1 3 3 1 Gunslinging . | . . . . Exploded 3 | . 2 3 . Melee 1 | . . . 1 Uniques/NPCs Destroyed . | . . . . Combat | -11 -10 -9 -8 -------- Run | Yrd Mat Mat Mat Hostile Shots Fired 272 | 2 16 147 107 Missed 70 | . 5 35 30 Hits 202 | 2 11 112 77 Projectile 202 | 2 11 112 77 Critical Strikes 5 | . 1 1 3 Part Disruptions 1 | . . 1 . Damage Taken 2646 | 24 147 1374 1101 Core 857 | . 28 274 555 Absorbed by Shields . | . . . . Core Remaining (%) 73 | 100 88 31 . Volleys Fired 79 | 2 13 47 17 Largest 3 | 2 2 3 1 Hottest 142 | 60 80 142 60 Shots Fired 123 | 4 19 83 17 Gun 70 | 4 15 47 4 Cannon 13 | . . . 13 Launcher 40 | . 4 36 . Special . | . . . . Kinetic 26 | 2 . 24 . Thermal 40 | . 1 22 17 Explosive 18 | . 4 14 . Electromagnetic 39 | 2 14 23 . Robot Hit Streak 7 | 3 5 7 3 Robot Miss Streak 6 | . 2 6 3 Penetration Max . | . . . . Secondary Targets . | . . . . Shots Hit Robots 71 | 3 9 40 19 Core Hits 61 | 1 11 46 3 Critical Kills . | . . . . Critical Parts Destroyed 3 | . . . 3 Critical Strikes 3 | . . . 3 Smash 3 | . . . 3 Melee Attacks 16 | . . . 16 Impact 16 | . . . 16 Slashing . | . . . . Piercing . | . . . . Sneak Attacks 1 | . . . 1 Combat Hostiles . | . . . . Follow-up Attacks . | . . . . Damage Inflicted 2985 | 35 584 1663 703 Guns 614 | 35 129 437 13 Cannons 205 | . . . 205 Explosions 1676 | . 455 1221 . Melee 485 | . . . 485 Ramming 5 | . . 5 . Kinetic 266 | 8 . 258 . Thermal 457 | . 28 211 218 Explosive 1104 | . 427 677 . Electromagnetic 668 | 27 129 512 . Impact 485 | . . . 485 Slashing . | . . . . Piercing . | . . . . Highest Corruption 1 | . . 1 . Average Corruption 1 | . . 1 . Corruption Purged . | . . . . Corruption Blocked . | . . . . Effects 2 | . . 2 . Matter Fused 1 | . . 1 . Alerts 1 | . . 1 . Overload Shots . | . . . . Overflow Damage 197 | . 26 19 152 Projectiles 2 | . . . 2 Explosions 45 | . 26 19 . Melee 150 | . . . 150 Knockbacks 2 | . . . 2 Impact 2 | . . . 2 Kinetic . | . . . . Secondary . | . . . . Self-Inflicted Damage 177 | . 59 118 . Shots 12 | . 2 10 . Rammed . | . . . . Targets Rammed 1 | . . 1 . Kicked 1 | . . 1 . Crushed . | . . . . Highest Temperature 105 | 32 36 105 40 Average Temperature 24 | 20 12 29 15 Received Heat Transfer 801 | 12 . 438 351 Siege Activations . | . . . . Martial Activations . | . . . . Shielding Activations . | . . . . Robots Disrupted . | . . . . Combat Hostiles . | . . . . Robots Corrupted 2 | . . . 2 Combat Hostiles 2 | . . . 2 Parts Fried 6 | . . 4 2 Impact Corruptions 6 | . . . 6 Robots Melted . | . . . . Combat Hostiles . | . . . . Parts Melted . | . . . . Heat Transferred 902 | . 50 482 370 Parts Sabotaged . | . . . . Parts Stolen . | . . . . Parts Stripped . | . . . . Power Chain Reactions 5 | . 1 4 . Alert | -11 -10 -9 -8 ------- Run | Yrd Mat Mat Mat Maximum Alert Level 2 | . . 2 1 Low Security (%) 78 | 100 100 56 90 Level 1 19 | . . 39 9 Level 2 2 | . . 4 . Level 3 . | . . . . Level 4 . | . . . . Level 5 . | . . . . High Security . | . . . . Max Security . | . . . . Peak Influence 405 | 20 116 405 219 Initial 143 | . 6 40 143 Average 131 | 3 38 208 160 Influence Increases 1099 | 20 224 684 171 Destroy 0b10 Robot/C 580 | 20 120 360 80 Destroy 0b10 Robot/NC 80 | . 25 45 10 Destroy Leader 134 | . 24 78 32 Successful Hack 20 | . 3 14 3 Disable Machine 105 | . 30 60 15 Destroy Structure 120 | . 22 97 1 Partial Spotted 15 | . . 15 . Lose Combat Pursuer 45 | . . 15 30 Influence Decreases 955 | 10 138 440 367 Entered New Map 257 | . 4 56 197 Time Decay 478 | 10 124 254 90 Lost Part 220 | . 10 130 80 Squads Dispatched 5 | . 1 2 2 Investigation 2 | . . 2 . Extermination . | . . . . Reinforcement 3 | . 1 . 2 Assault . | . . . . Garrison . | . . . . Intercept . | . . . . Searches Triggered . | . . . . Construction Impeded . | . . . . Haulers Reinforced . | . . . . Active Scanning Responses . | . . . . Cargo Convoy Interrupts . | . . . . Stealth | -11 -10 -9 -8 --------- Run | Yrd Mat Mat Mat Distress Signals 6 | . . 5 1 Communications Jammed . | . . . . Distress Signals . | . . . . Times Spotted 56 | 1 8 30 17 Peak Tracking Total 7 | 1 3 6 7 Tactical Retreats 2 | . . 1 1 Traps | -11 -10 -9 -8 ------- Run | Yrd Mat Mat Mat Traps Triggered 1 | . 1 . . Indirectly . | . . . . Trap Hack Attempts . | . . . . Triggered . | . . . . Disarmed . | . . . . Reprogrammed . | . . . . Reused . | . . . . Traps Extracted . | . . . . Installed . | . . . . Triggered . | . . . . Machines | -11 -10 -9 -8 ---------- Run | Yrd Mat Mat Mat Machines Disabled 7 | . 2 4 1 Max in Single Turn 2 | . 2 1 1 Machines Repaired . | . . . . Machines Dismantled . | . . . . Machines Sabotaged . | . . . . Overloaded Fab Kills . | . . . . Hacking | -11 -10 -9 -8 --------- Run | Yrd Mat Mat Mat Machines Accessed 9 | . 3 5 1 Terminals 8 | . 3 4 1 Fabricators . | . . . . Repair Stations . | . . . . Recycling Units . | . . . . Scanalyzers 1 | . . 1 . Garrison Access . | . . . . Total Hacks 26 | . 6 18 2 Successful 21 | . 3 16 2 Failed 5 | . 3 2 . Catastrophic . | . . . . Database Lockouts . | . . . . Manual . | . . . . Terminals 24 | . 6 16 2 Fabricators . | . . . . Repair Stations . | . . . . Recycling Units . | . . . . Scanalyzers 2 | . . 2 . Garrison Access . | . . . . Terminal Hacks 19 | . 3 14 2 Record 7 | . . 6 1 Prototype ID Bank 3 | . . 2 1 Emergency Access Points 2 | . . 2 . Alert Level 3 | . 1 2 . Locate Traps 1 | . 1 . . Reinforcement Status 1 | . . 1 . Recall Reinforcements 1 | . 1 . . Registered Components 1 | . . 1 . Fabricator Hacks . | . . . . Repair Station Hacks . | . . . . Recycling Unit Hacks . | . . . . Scanalyzer 2 | . . 2 . Insert Component 1 | . . 1 . Analyze 1 | . . 1 . Garrison Access Hacks . | . . . . Unauthorized Hacks . | . . . . Terminals . | . . . . Fabricators . | . . . . Repair Stations . | . . . . Recycling Units . | . . . . Scanalyzers . | . . . . Garrison Access . | . . . . Data Cores Recovered 1 | . 1 . . Used . | . . . . Hacking Detections 6 | . 1 4 1 Full Trace Events 2 | . . 2 . Feedback Events . | . . . . Feedback Blocked . | . . . . Robot Schematics Acquired . | . . . . Robots Built . | . . . . Authchips . | . . . . Time . | . . . . Total Robot Build Rating . | . . . . Part Schematics Acquired 1 | . . 1 . Parts Built . | . . . . Authchips . | . . . . Time . | . . . . Total Part Build Rating . | . . . . Parts Repaired . | . . . . Time . | . . . . Parts Recycled . | . . . . Recycled Matter . | . . . . Retrieved Matter . | . . . . Retrieved Components . | . . . . Parts Scanalyzed 1 | . . 1 . Part Schematics Acquired 1 | . . 1 . Parts Damaged . | . . . . Bothacking | -11 -10 -9 -8 ------------ Run | Yrd Mat Mat Mat Used RIF Installer . | . . . . Robots Hacked . | . . . . Non-combat . | . . . . Combat . | . . . . Robot Hacks Applied . | . . . . Relay Couplers Released . | . . . . Fabnet Peak Effective % . | . . . . Robots Rewired . | . . . . Allies Hacked . | . . . . Hacks Repelled . | . . . . Allies | -11 -10 -9 -8 -------- Run | Yrd Mat Mat Mat Total Allies . | . . . . Largest Group . | . . . . Highest-Rated Group . | . . . . Highest-Rated Ally . | . . . . Total Orders . | . . . . Ally Attacks . | . . . . Total Damage . | . . . . Kills . | . . . . Allies Corrupted . | . . . . Allies Melted . | . . . . Intel | -11 -10 -9 -8 ------- Run | Yrd Mat Mat Mat Active Infowar (turns) 873 | . 336 537 . Terrain 873 | . 336 537 . Robot Analysis Total . | . . . . Derelict Logs Recovered . | . . . . Drone Launches . | . . . . Drone Recoveries . | . . . . Exploration | -11 -10 -9 -8 ------------- Run | Yrd Mat Mat Mat Turns Passed 1199 | 84 391 541 183 Spaces Moved 842 | 66 328 306 142 Core 83 | 14 7 6 56 Treads . | . . . . Legs 436 | 5 122 300 9 Wheels 246 | 47 199 . . Hover . | . . . . Flight 77 | . . . 77 Fastest Speed 35 | 50 80 100 35 Average Speed 96 | 76 96 120 53 Slowest Speed 250 | 120 200 200 250 Overloaded Moves . | . . . . Propulsion Burnouts . | . . . . Robots Hopped . | . . . . Potential Cave-ins . | . . . . Cave-ins Triggered . | . . . . Exploration Rate (%) 26 | 8 49 34 14 Regions Visited 3 Branch Regions . Pre-discovered Areas . | . . . . Known Exits Taken . | . . . . Unknown Exits Taken 3 | 1 1 1 . Scrap Searched . | . . . . Spaces Dug . | . . . . Terrain Destroyed 127 | . 22 104 1 Melee . | . . . . Projectile 1 | . . . 1 AOE 126 | . 22 104 . Terrain Rammed . | . . . . Walls Destroyed . | . . . . Machines Disabled . | . . . . Actions | -11 -10 -9 -8 --------- Run | Yrd Mat Mat Mat Total 1094 | 93 386 408 207 Wait 30 | 7 7 11 5 Move 839 | 65 327 305 142 Hop . | . . . . Pick Up 51 | 10 16 18 7 Fast Attach 2 | . 2 . . Attach 39 | 5 5 15 14 Detach 7 | . . 1 6 Swap 9 | 4 4 1 . Drop 21 | . 12 9 . Fire 79 | 2 13 47 17 Melee 16 | . . . 16 Ram . | . . . . Kick 1 | . . 1 . Crush . | . . . . Escape Stasis . | . . . . Rewire . | . . . . Trap . | . . . . Miscellaneous . | . . . . Route ------- -11/Scrapyard -10/Materials (discovered 2 exits: *Mat / [*Min]) -9/Materials -8/Materials History --------- Turn | Location | Event 2 | -11/Scrapyard | Met Revision 17 60 | -11/Scrapyard | Discovered new exit (range 8) 85 | -11/Scrapyard | Entered Materials 210 | -10/Materials | Discovered new exit (range 15) 311 | -10/Materials | Build established: Mutant 371 | -10/Materials | Discovered new exit (range 5) 476 | -10/Materials | Entered another Materials area 476 | -9/Materials | Evolved 2 slots: Utility x1, Weapon x1 783 | -9/Materials | Build established: Skirmisher 837 | -9/Materials | Lost 3 parts (1n2w) 995 | -9/Materials | Discovered new exit (range 10) 999 | -9/Materials | Core integrity fell below 50% 1017 | -9/Materials | Entered another Materials area 1017 | -8/Materials | Evolved 2 slots: Propulsion x1, Utility x1 1044 | -8/Materials | Lost 6 parts (1p2n1u2w) 1191 | -8/Materials | Core integrity fell below 50% 1196 | -8/Materials | Core integrity fell below 20% 1200 | -8/Materials | Destroyed by G-47 Trooper with Particle Gun Last Messages --------------- effect. Penetrated by Slug. R-06 Scavenger collects Flight Unit. Critical hit (Burn: +37). Penetrated by Slug. Lgt. Ion Engine destroyed. Penetrated by Slug. H-55 Commando IFF system glitched. Slug penetrates S-10 Pest. S-10 Pest destroyed. Ion Cannon destroyed. Penetrated by Slug. Acquired Flight Unit. Hacking Suite destroyed. Critical hit (Burn: +37). Slug penetrates Hadron Collector. Aluminum Leg destroyed. Acquired Lgt. Ion Engine. Critical hit (Burn: +37). [Achievement: First Step to Greatness] Map ----- +----------------------------------------------------+ | ?????????????????????????????????????????????????? | | ?????????????????????????????????????????????????? | | ?????????????????????????????????????????????????? | | ?????????????????????????????????????????????????? | | ?????????????????????????????????????????????????? | | ?????????????????????????????????????????????????? | | ?????????????????????????????????????????????????? | | ?????????????????????????????????????????????????? | | ?????????????????????????????????????????????????? | | ????????? ????????????????????????????????????? | | ????????? ????????????????????????????????????? | | ????????# ????????????????????????????????????? | | ???? ???# ????????????????????????????????????? | | ??? ??# ????????????????????????????????????? | | ???? ?# #????????????????????????????????????? | | ????? ?# #????????????????????????????????????? | | ?????? # #????????????????????????????????????? | | ??????? # #????????????????????????????????????? | | ????????/ #?????????????????????#####??????????? | | ????????# #????????????????????? ???????????? | | ????????# #???????????????????? ????????????? | | ???????## ##??????###########? ?????????????? | | ######## #??????# #? #??????????????? | | # ######## "h"g""" # #??????????????? | | # % %+%" """ # # *???????? | | # ######## "" @%g" + + ???????????? | | # #### #??????# " g% # #??????????????? | | # #?####+#####????# Y %#??????????????????? | | # #?# #????# % % #??????????????????? | | # #?# """ #????# ] #??????????????????? | | # #?# """ #????###########??????????????????? | | # #?# """ #?????????????????????????????????? | | # #?# #?????????????????????????????????? | | # #?# """ #?????????????????????????????????? | | # #?# """ #?????????????????????????????????? | | # #?# """ #?????????????????????????????????? | | # #?# #?????????????????????????????????? | | # #?##########?????????????????????????????????? | | # #????????????????????????????????????????????? | | # #????????????????????????????????????????????? | | # #????????????????????????????????????????????? | | # #????????????????????????????????????????????? | | # #???????###########??????????????????????????? | | # #???????# #??????????????????????????? | | # ######### #??????????????????????????? | | # #??????????????????????????? | | # #??????????????????????????? | | # #??????????????????????????? | | ######### + #??????????????????????????? | | ????????# # #??????????????????????????? | +----------------------------------------------------+ Best States ------------- Heat Dissipation 31 Energy Generation 12 Energy Capacity 265 Matter Stores 300 Matter Capacity 300 Sight Range 16 Terrain Scan Range 16 Terrain Scan Density 85 Armor Coverage 150 Evasion (%) 63 Targeting Accuracy 5 Offensive Hacking 10 Item Schematics ----------------- Shock Bomb Launcher | -9/Materials | Scanalyzed Robot Schematics ------------------ None Fabricated ------------ Nothing Repaired ---------- Nothing Alien Tech Used ----------------- None Achievements -------------- First Step to Greatness GoHome() Loot Pinata One Hack Too Far Power Corrupts Storm Trooper Uninvited Guest Challenges ------------ None Game ------ Seed TerrorThrusterChargecaster Manual? 0 Play Time 01:07:16 Cumulative 1.1 hours Start 2025.08.17 @ 18:29:08 End 2025.08.18 @ 11:20:27 Sessions 3 Manual Loads 0 Difficulty Rogue Special Mode None Game No. 1 Rogue 1 Adventurer 0 Explorer 0 Win Type - Total 0 Types 0/0/0/0/0/0/0/0/0/0 Lore% 0 Gallery% 2 Achievement% 2 Wizard Run 0 Options --------- Layout 1 ASCII 0 Keyboard 0 Movement Mouse Keybinds 0 Fullscreen 1 Font 32/SmallcapsGlow Map View 50x35 Zoom Use 0% Tactical HUD 0 Map Filters NONE Filters NONE Steam 1 RUN: f2547610-973d-48a5-b5ad-7ab10f74eac2